[Event "*** Titled Tuesday Blitz"]
[Site "Chess.com"]
[Date "2020.05.19"]
[Round "4"]
[White "Kildepiotr"]
[Black "Rakesh"]
[Result "1-0"]
[WhiteElo "2577"]
[BlackElo "2371"]
[TimeControl "180+1"]
[EndTime "12:41:35 PDT"]
[Termination "Kildepiotr won by resignation"]

1. Nf3 {[%clk 0:03:00.9]} 1... c5 {[%clk 0:02:59.2]} 2. g3 {[%clk 0:03:00.9]}
2... d5 {[%clk 0:02:57.7]} 3. Bg2 {[%clk 0:03:01.4]} 3... Nc6 {[%clk 0:02:58.4]}
4. O-O {[%clk 0:03:01.9]} 4... Nf6 {[%clk 0:02:58.1]} 5. d3 {[%clk 0:03:01.9]}
5... e6 {[%clk 0:02:58.3]} 6. Nbd2 {[%clk 0:03:02.5]} 6... Be7 {[%clk
0:02:59.2]} 7. e4 {[%clk 0:03:02.3]} 7... O-O {[%clk 0:03:00.1]} 8. Qe2 {[%clk
0:03:01.9]} 8... b6 {[%clk 0:02:53.7]} 9. e5 {[%clk 0:03:01.3]} 9... Nd7 {[%clk
0:02:40.3]} 10. c3 {[%clk 0:03:01.2]} 10... Ba6 {[%clk 0:02:38.3]} 11. h4 {[%clk
0:02:59.2]} 11... Qc7 {[%clk 0:02:26.9]} 12. Re1 {[%clk 0:02:58.2]} 12... Rad8
{[%clk 0:02:11.1]} 13. Nf1 {[%clk 0:02:56.1]} 13... d4 {[%clk 0:01:47.7]} 14. c4
{[%clk 0:02:55.9]} 14... b5 {[%clk 0:01:44.7]} 15. b3 {[%clk 0:02:55.1]} 15...
bxc4 {[%clk 0:01:39]} 16. bxc4 {[%clk 0:02:54.6]} 16... Rb8 {[%clk 0:01:39]} 17.
Bg5 {[%clk 0:02:47]} 17... Rb6 {[%clk 0:01:31.5]} 18. Bxe7 {[%clk 0:02:24.5]}
18... Nxe7 {[%clk 0:01:32.4]} 19. Qd2 {[%clk 0:02:22]} 19... Rfb8 {[%clk
0:01:31.6]} 20. Qg5 {[%clk 0:02:17.2]} 20... Nf8 {[%clk 0:01:26.8]} 21. N1d2
{[%clk 0:02:05.7]} 21... h6 {[%clk 0:01:22.8]} 22. Qg4 {[%clk 0:01:57.2]} 22...
Rb2 {[%clk 0:01:18.8]} 23. Ne4 {[%clk 0:01:56.6]} 23... Nf5 {[%clk 0:01:18.3]}
24. Qf4 {[%clk 0:01:41.2]} 24... Bb7 {[%clk 0:01:12.9]} 25. g4 {[%clk
0:01:36.6]} 25... Ng6 {[%clk 0:01:08.6]} 26. Qh2 {[%clk 0:01:34.4]} 26... Nfe7
{[%clk 0:00:53.9]} 27. h5 {[%clk 0:01:29.9]} 27... Bxe4 {[%clk 0:00:48.7]} 28.
Rxe4 {[%clk 0:01:28.3]} 28... Rb1+ {[%clk 0:00:44.1]} 29. Re1 {[%clk 0:01:20.8]}
29... Rxa1 {[%clk 0:00:38.9]} 30. Rxa1 {[%clk 0:01:21.7]} 30... Nf8 {[%clk
0:00:35.1]} 31. Nd2 {[%clk 0:01:10.2]} 31... Rb2 {[%clk 0:00:26.4]} 32. Ne4
{[%clk 0:01:09.4]} 32... Nd7 {[%clk 0:00:22.4]} 33. f4 {[%clk 0:00:59.6]} 33...
Qb6 {[%clk 0:00:19.7]} 34. Qg3 {[%clk 0:00:55.9]} 34... Rb1+ {[%clk 0:00:20.6]}
35. Rxb1 {[%clk 0:00:55.5]} 35... Qxb1+ {[%clk 0:00:21.5]} 36. Kh2 {[%clk
0:00:54.7]} 36... Qxa2 {[%clk 0:00:21.9]} 37. Kh3 {[%clk 0:00:51.6]} 37... Qe2
{[%clk 0:00:21.8]} 38. Qf3 {[%clk 0:00:37]} 38... Qxf3+ {[%clk 0:00:20.1]} 39.
Bxf3 {[%clk 0:00:37.9]} 39... a5 {[%clk 0:00:20.3]} 40. Bd1 {[%clk 0:00:38]}
40... Nb6 {[%clk 0:00:10.2]} 41. Nxc5 {[%clk 0:00:37.3]} 41... Nc6 {[%clk
0:00:10.7]} 42. Kg3 {[%clk 0:00:32.4]} 42... Nb4 {[%clk 0:00:11]} 43. Kf3 {[%clk
0:00:31.2]} 43... Kf8 {[%clk 0:00:11.5]} 44. Ke4 {[%clk 0:00:28.9]} 44... Ke7
{[%clk 0:00:10.8]} 45. Kxd4 {[%clk 0:00:28.9]} 45... f5 {[%clk 0:00:10.5]} 46.
gxf5 {[%clk 0:00:23.9]} 46... exf5 {[%clk 0:00:11.4]} 47. Kc3 {[%clk 0:00:22.8]}
47... Nc6 {[%clk 0:00:11.6]} 48. d4 {[%clk 0:00:20.5]} 48... Nb4 {[%clk
0:00:08]} 49. d5 {[%clk 0:00:20.3]} 49... Na2+ {[%clk 0:00:04.7]} 50. Kd4 {[%clk
0:00:19.3]} 50... Nc1 {[%clk 0:00:02.9]} 51. Na4 {[%clk 0:00:17.8]} 51... Nxa4
{[%clk 0:00:01.7]} 52. Bxa4 {[%clk 0:00:17.3]} 52... Ne2+ {[%clk 0:00:02.6]} 53.
Ke3 {[%clk 0:00:17.4]} 53... Nc3 {[%clk 0:00:02.6]} 54. Bc2 {[%clk 0:00:14.5]}
54... a4 {[%clk 0:00:02.6]} 55. Kd3 {[%clk 0:00:13.2]} 55... a3 {[%clk
0:00:02.9]} 56. Kxc3 {[%clk 0:00:13]} 1-0

[Event "*** Titled Tuesday Blitz"]
[Site "Chess.com"]
[Date "2020.05.19"]
[Round "4"]
[White "Baronessa08"]
[Black "Xeniya2005"]
[Result "0-1"]
[WhiteElo "2435"]
[BlackElo "2286"]
[TimeControl "180+1"]
[EndTime "12:41:35 PDT"]
[Termination "Xeniya2005 won on time"]

1. c4 {[%clk 0:03:00.9]} 1... e5 {[%clk 0:02:59.6]} 2. g3 {[%clk 0:02:58.7]}
2... Nf6 {[%clk 0:02:43]} 3. Bg2 {[%clk 0:02:57.6]} 3... Nc6 {[%clk 0:02:41.9]}
4. Nc3 {[%clk 0:02:55.1]} 4... Bb4 {[%clk 0:02:35.3]} 5. Nd5 {[%clk 0:02:52.3]}
5... Bc5 {[%clk 0:02:19.2]} 6. e3 {[%clk 0:02:48.4]} 6... d6 {[%clk 0:02:16.2]}
7. Ne2 {[%clk 0:02:46]} 7... Nxd5 {[%clk 0:02:13.1]} 8. cxd5 {[%clk 0:02:44]}
8... Ne7 {[%clk 0:02:12.5]} 9. O-O {[%clk 0:02:41.8]} 9... O-O {[%clk
0:02:11.8]} 10. d4 {[%clk 0:02:41]} 10... exd4 {[%clk 0:02:10.6]} 11. Nxd4
{[%clk 0:02:40.6]} 11... Nf5 {[%clk 0:01:59.9]} 12. Nxf5 {[%clk 0:02:23.3]}
12... Bxf5 {[%clk 0:02:00.8]} 13. b3 {[%clk 0:02:21.7]} 13... Qf6 {[%clk
0:01:50.9]} 14. Bd2 {[%clk 0:02:21.5]} 14... a5 {[%clk 0:01:47.2]} 15. Rc1
{[%clk 0:02:17.1]} 15... Rfe8 {[%clk 0:01:43.9]} 16. Bc3 {[%clk 0:02:15.5]}
16... Qe7 {[%clk 0:01:43]} 17. Re1 {[%clk 0:02:06.8]} 17... Be4 {[%clk 0:01:40]}
18. Bf1 {[%clk 0:01:58.4]} 18... Qd7 {[%clk 0:01:25.8]} 19. f3 {[%clk 0:01:29]}
19... Bg6 {[%clk 0:01:17.6]} 20. Bd4 {[%clk 0:01:29]} 20... Bxd4 {[%clk
0:01:15.4]} 21. Qxd4 {[%clk 0:01:28]} 21... f5 {[%clk 0:01:09.1]} 22. a4 {[%clk
0:01:26.9]} 22... Re7 {[%clk 0:01:00.4]} 23. Bb5 {[%clk 0:01:23.8]} 23... Qd8
{[%clk 0:00:58.7]} 24. Rc3 {[%clk 0:01:24.1]} 24... Be8 {[%clk 0:00:52.1]} 25.
Bd3 {[%clk 0:01:17.8]} 25... Bd7 {[%clk 0:00:38.1]} 26. Rec1 {[%clk 0:01:12.5]}
26... Rc8 {[%clk 0:00:37.4]} 27. Kf2 {[%clk 0:01:00.3]} 27... g6 {[%clk
0:00:24.8]} 28. Qa7 {[%clk 0:00:59.5]} 28... Qe8 {[%clk 0:00:20.2]} 29. Rxc7
{[%clk 0:00:54]} 29... Rxc7 {[%clk 0:00:18.7]} 30. Rxc7 {[%clk 0:00:54.5]} 30...
Bc8 {[%clk 0:00:15.2]} 31. Rc3 {[%clk 0:00:39.7]} 31... Qd8 {[%clk 0:00:14.8]}
32. Qb8 {[%clk 0:00:35]} 32... Re8 {[%clk 0:00:14.8]} 33. Bb5 {[%clk 0:00:33.5]}
33... Rf8 {[%clk 0:00:14.6]} 34. Qc7 {[%clk 0:00:32.3]} 34... Qf6 {[%clk
0:00:14.5]} 35. Rc2 {[%clk 0:00:26.9]} 35... g5 {[%clk 0:00:14.1]} 36. Qc3
{[%clk 0:00:26.7]} 36... Qe7 {[%clk 0:00:13.3]} 37. Qxa5 {[%clk 0:00:20.4]}
37... f4 {[%clk 0:00:12.9]} 38. exf4 {[%clk 0:00:16.6]} 38... gxf4 {[%clk
0:00:13.8]} 39. Re2 {[%clk 0:00:14.6]} 39... Qf7 {[%clk 0:00:13.7]} 40. g4
{[%clk 0:00:14.3]} 40... Qf6 {[%clk 0:00:13.3]} 41. Qb6 {[%clk 0:00:13]} 41...
Qh4+ {[%clk 0:00:13.2]} 42. Kg1 {[%clk 0:00:11.3]} 42... Qf6 {[%clk 0:00:08]}
43. Bc4 {[%clk 0:00:06.8]} 43... Bxg4 {[%clk 0:00:06.8]} 44. fxg4 {[%clk
0:00:06.4]} 44... f3 {[%clk 0:00:06.8]} 45. Rf2 {[%clk 0:00:06.2]} 45... Qf4
{[%clk 0:00:06.7]} 46. Bf1 {[%clk 0:00:03.4]} 46... Qxg4+ {[%clk 0:00:06.4]} 47.
Kh1 {[%clk 0:00:03.8]} 47... Qf4 {[%clk 0:00:05.6]} 48. Qxb7 {[%clk 0:00:02.2]}
48... Kh8 {[%clk 0:00:04.9]} 49. Qd7 {[%clk 0:00:01.9]} 49... Rg8 {[%clk
0:00:05]} 0-1

[Event "*** Titled Tuesday Blitz"]
[Site "Chess.com"]
[Date "2020.05.19"]
[Round "4"]
[White "chenxiaoyuer"]
[Black "stolencandy13"]
[Result "0-1"]
[WhiteElo "2293"]
[BlackElo "2560"]
[TimeControl "180+1"]
[EndTime "12:41:37 PDT"]
[Termination "stolencandy13 won by resignation"]

1. e4 {[%clk 0:03:00.9]} 1... c6 {[%clk 0:02:58.7]} 2. d4 {[%clk 0:03:00.2]}
2... d5 {[%clk 0:02:59.1]} 3. Nc3 {[%clk 0:03:00.1]} 3... dxe4 {[%clk
0:02:59.2]} 4. Nxe4 {[%clk 0:02:59.9]} 4... Bf5 {[%clk 0:02:59.9]} 5. Ng3 {[%clk
0:02:59.4]} 5... Bg6 {[%clk 0:03:00.4]} 6. h4 {[%clk 0:02:59.5]} 6... h6 {[%clk
0:03:00.6]} 7. Nf3 {[%clk 0:02:59.4]} 7... Nd7 {[%clk 0:03:00.4]} 8. h5 {[%clk
0:02:58.7]} 8... Bh7 {[%clk 0:02:59.8]} 9. Bd3 {[%clk 0:02:59.2]} 9... Bxd3
{[%clk 0:02:59.9]} 10. Qxd3 {[%clk 0:03:00.1]} 10... e6 {[%clk 0:03:00.6]} 11.
Bd2 {[%clk 0:03:00.5]} 11... Ngf6 {[%clk 0:03:00.2]} 12. O-O-O {[%clk 0:03:01]}
12... Be7 {[%clk 0:03:00.9]} 13. Ne4 {[%clk 0:03:01.4]} 13... Nxe4 {[%clk
0:03:00.6]} 14. Qxe4 {[%clk 0:03:02.3]} 14... Nf6 {[%clk 0:03:00.9]} 15. Qd3
{[%clk 0:03:02.5]} 15... O-O {[%clk 0:02:33.7]} 16. g4 {[%clk 0:03:00.3]} 16...
Nxg4 {[%clk 0:02:31.6]} 17. Rhg1 {[%clk 0:02:59.9]} 17... f5 {[%clk 0:02:26.8]}
18. Qe2 {[%clk 0:02:58.1]} 18... Kh8 {[%clk 0:02:14.9]} 19. Qxe6 {[%clk
0:02:46.5]} 19... Qd6 {[%clk 0:02:08.6]} 20. Rde1 {[%clk 0:02:12.8]} 20... Qxe6
{[%clk 0:02:07.6]} 21. Rxe6 {[%clk 0:02:13.7]} 21... Bf6 {[%clk 0:02:07.4]} 22.
Ne5 {[%clk 0:01:54.2]} 22... Rfe8 {[%clk 0:01:52.8]} 23. Rxe8+ {[%clk
0:01:49.8]} 23... Rxe8 {[%clk 0:01:53.7]} 24. Nxg4 {[%clk 0:01:47.7]} 24... fxg4
{[%clk 0:01:52.9]} 25. Rxg4 {[%clk 0:01:42.2]} 25... Rd8 {[%clk 0:01:52.9]} 26.
Be3 {[%clk 0:01:35.4]} 26... Rd5 {[%clk 0:01:51]} 27. Re4 {[%clk 0:01:21.4]}
27... Rxh5 {[%clk 0:01:48.6]} 28. Re8+ {[%clk 0:01:10.2]} 28... Kh7 {[%clk
0:01:48.5]} 29. Rb8 {[%clk 0:01:06.4]} 29... b6 {[%clk 0:01:39.4]} 30. Rc8
{[%clk 0:01:02.1]} 30... Rd5 {[%clk 0:01:31.4]} 31. c3 {[%clk 0:00:53]} 31... h5
{[%clk 0:01:16]} 32. Kd2 {[%clk 0:00:32.7]} 32... h4 {[%clk 0:01:13.2]} 33. Ke2
{[%clk 0:00:31.7]} 33... h3 {[%clk 0:00:32]} 34. Kf1 {[%clk 0:00:30.4]} 34... c5
{[%clk 0:00:31.8]} 35. Kg1 {[%clk 0:00:12.5]} 35... cxd4 {[%clk 0:00:28.5]} 36.
cxd4 {[%clk 0:00:12.3]} 36... Bxd4 {[%clk 0:00:28.8]} 37. Bxd4 {[%clk
0:00:12.3]} 37... Rxd4 {[%clk 0:00:29.7]} 38. Rc3 {[%clk 0:00:11.6]} 38... Rd1+
{[%clk 0:00:24.2]} 39. Kh2 {[%clk 0:00:11.1]} 39... Rd2 {[%clk 0:00:24.8]} 40.
Rxh3+ {[%clk 0:00:09.1]} 40... Kg8 {[%clk 0:00:24.3]} 41. Ra3 {[%clk 0:00:05.3]}
41... a5 {[%clk 0:00:24.4]} 42. Rb3 {[%clk 0:00:04.9]} 42... Rxf2+ {[%clk
0:00:23.3]} 43. Kg3 {[%clk 0:00:04.5]} 43... Rf6 {[%clk 0:00:23.5]} 44. Rb5
{[%clk 0:00:04.9]} 44... Kf7 {[%clk 0:00:23.5]} 45. b3 {[%clk 0:00:04]} 45...
Ke7 {[%clk 0:00:23.8]} 46. a3 {[%clk 0:00:03.8]} 46... Kd7 {[%clk 0:00:24]} 47.
Rg5 {[%clk 0:00:03.4]} 47... g6 {[%clk 0:00:21.4]} 48. b4 {[%clk 0:00:03.5]}
48... axb4 {[%clk 0:00:21]} 49. axb4 {[%clk 0:00:03.9]} 49... Ke7 {[%clk
0:00:20.4]} 50. Rb5 {[%clk 0:00:03.6]} 50... Kf7 {[%clk 0:00:20.1]} 51. Kg4
{[%clk 0:00:04]} 51... Rd6 {[%clk 0:00:19.6]} 52. Rg5 {[%clk 0:00:03.8]} 52...
Kf6 {[%clk 0:00:19.3]} 53. Rb5 {[%clk 0:00:03.3]} 53... Rd4+ {[%clk 0:00:19.5]}
54. Kf3 {[%clk 0:00:03.5]} 54... Rd6 {[%clk 0:00:19.8]} 55. Kf4 {[%clk
0:00:03.2]} 55... Rc6 {[%clk 0:00:19.1]} 56. Ke4 {[%clk 0:00:02.9]} 56... g5
{[%clk 0:00:18.8]} 57. Rf5+ {[%clk 0:00:02.4]} 57... Kg6 {[%clk 0:00:18.7]} 58.
Rb5 {[%clk 0:00:02.4]} 58... Re6+ {[%clk 0:00:18.7]} 59. Kd4 {[%clk 0:00:02.1]}
59... g4 {[%clk 0:00:18.3]} 60. Rd5 {[%clk 0:00:01.6]} 60... g3 {[%clk
0:00:17.9]} 61. Rd8 {[%clk 0:00:01.5]} 61... Re7 {[%clk 0:00:15.7]} 62. Rd6+
{[%clk 0:00:01.1]} 62... Kg5 {[%clk 0:00:15.6]} 63. Rd8 {[%clk 0:00:01.1]} 63...
Rg7 {[%clk 0:00:13.9]} 64. Rg8 {[%clk 0:00:02]} 64... Rxg8 {[%clk 0:00:13.8]}
65. Kd5 {[%clk 0:00:01.8]} 65... g2 {[%clk 0:00:13.8]} 66. Kc6 {[%clk
0:00:02.7]} 66... g1=Q {[%clk 0:00:13.9]} 0-1

[Event "*** Titled Tuesday Blitz"]
[Site "Chess.com"]
[Date "2020.05.19"]
[Round "4"]
[White "tomozupan"]
[Black "zurzan"]
[Result "0-1"]
[WhiteElo "2194"]
[BlackElo "1906"]
[TimeControl "180+1"]
[EndTime "12:41:40 PDT"]
[Termination "zurzan won on time"]

1. d4 {[%clk 0:02:35]} 1... d6 {[%clk 0:02:58.9]} 2. c4 {[%clk 0:02:34.8]} 2...
f5 {[%clk 0:02:58.2]} 3. Nc3 {[%clk 0:02:34.7]} 3... Nf6 {[%clk 0:02:58.2]} 4.
Bg5 {[%clk 0:02:34.5]} 4... Nbd7 {[%clk 0:02:57.3]} 5. e3 {[%clk 0:02:34.5]}
5... g6 {[%clk 0:02:56.6]} 6. Bd3 {[%clk 0:02:34.7]} 6... Bg7 {[%clk 0:02:56.5]}
7. h4 {[%clk 0:02:34.3]} 7... h6 {[%clk 0:02:55]} 8. Bf4 {[%clk 0:02:33.1]} 8...
O-O {[%clk 0:02:53.8]} 9. Qc2 {[%clk 0:02:33]} 9... e6 {[%clk 0:02:52.1]} 10.
O-O-O {[%clk 0:02:32.5]} 10... c6 {[%clk 0:02:51.7]} 11. e4 {[%clk 0:02:32.3]}
11... e5 {[%clk 0:02:50.7]} 12. dxe5 {[%clk 0:02:28.5]} 12... dxe5 {[%clk
0:02:50.7]} 13. Bd2 {[%clk 0:02:18.7]} 13... f4 {[%clk 0:02:49.9]} 14. g3 {[%clk
0:02:18.7]} 14... Ng4 {[%clk 0:02:40.4]} 15. Nh3 {[%clk 0:02:16.7]} 15... f3
{[%clk 0:02:36.5]} 16. c5 {[%clk 0:02:02.7]} 16... Qe7 {[%clk 0:02:30.4]} 17.
Bc4+ {[%clk 0:02:02.1]} 17... Kh7 {[%clk 0:02:14.3]} 18. Ng5+ {[%clk 0:01:57.6]}
18... Kh8 {[%clk 0:02:06.9]} 19. Be3 {[%clk 0:01:28.4]} 19... Nxe3 {[%clk
0:02:04.6]} 20. fxe3 {[%clk 0:01:28.6]} 20... Nf6 {[%clk 0:01:53.6]} 21. Rd6
{[%clk 0:01:26.1]} 21... Bg4 {[%clk 0:01:46.9]} 22. Ne6 {[%clk 0:01:21]} 22...
Rfe8 {[%clk 0:01:26.4]} 23. Nxg7 {[%clk 0:01:19.5]} 23... Qxg7 {[%clk
0:01:26.3]} 24. Nd1 {[%clk 0:01:14.8]} 24... h5 {[%clk 0:01:25.6]} 25. Nf2
{[%clk 0:01:14.5]} 25... Rad8 {[%clk 0:01:18.4]} 26. Rhd1 {[%clk 0:01:13.6]}
26... Rxd6 {[%clk 0:01:17.5]} 27. cxd6 {[%clk 0:01:12.5]} 27... Rd8 {[%clk
0:01:17]} 28. Qb3 {[%clk 0:01:10.7]} 28... b5 {[%clk 0:01:13.9]} 29. Be6 {[%clk
0:01:09.2]} 29... a5 {[%clk 0:00:56.3]} 30. d7 {[%clk 0:01:00]} 30... a4 {[%clk
0:00:52.8]} 31. Qc3 {[%clk 0:00:41]} 31... Bxe6 {[%clk 0:00:51.5]} 32. Qxe5
{[%clk 0:00:40.9]} 32... Bxd7 {[%clk 0:00:45.6]} 33. Qd4 {[%clk 0:00:21]} 33...
Re8 {[%clk 0:00:40.1]} 34. e5 {[%clk 0:00:20.5]} 34... Nd5 {[%clk 0:00:39.3]}
35. e4 {[%clk 0:00:19.8]} 35... Qh6+ {[%clk 0:00:37.5]} 36. Kb1 {[%clk
0:00:18.8]} 36... Ne3 {[%clk 0:00:36.4]} 37. Qxd7 {[%clk 0:00:17.7]} 37... Rf8
{[%clk 0:00:30.1]} 38. Rd6 {[%clk 0:00:16.8]} 38... Ng4 {[%clk 0:00:18.2]} 39.
Nxg4 {[%clk 0:00:06.5]} 39... hxg4 {[%clk 0:00:18.3]} 40. Rf6 {[%clk 0:00:06.1]}
40... Rg8 {[%clk 0:00:17.7]} 41. e6 {[%clk 0:00:02]} 41... Qe3 {[%clk
0:00:15.7]} 42. e7 {[%clk 0:00:02]} 42... Qxe4+ {[%clk 0:00:15.6]} 43. Kc1
{[%clk 0:00:01.3]} 43... Qe3+ {[%clk 0:00:15.4]} 44. Kc2 {[%clk 0:00:01.6]}
44... Qe2+ {[%clk 0:00:14.1]} 45. Kc3 {[%clk 0:00:01.7]} 45... Qe5+ {[%clk
0:00:13.6]} 46. Kb4 {[%clk 0:00:02]} 46... Qxf6 {[%clk 0:00:13.8]} 47. e8=Q
{[%clk 0:00:02.3]} 47... Rxe8 {[%clk 0:00:13.2]} 48. Qxe8+ {[%clk 0:00:02.5]}
48... Kg7 {[%clk 0:00:14.1]} 49. Qd7+ {[%clk 0:00:02.8]} 49... Qf7 {[%clk
0:00:13.6]} 50. Qd4+ {[%clk 0:00:02.7]} 50... Kh7 {[%clk 0:00:12.5]} 51. Qe5
{[%clk 0:00:03]} 51... f2 {[%clk 0:00:11.7]} 52. Qg5 {[%clk 0:00:03]} 52... f1=Q
{[%clk 0:00:09.6]} 53. Ka5 {[%clk 0:00:03.9]} 53... Qe1+ {[%clk 0:00:08.7]} 54.
b4 {[%clk 0:00:03.4]} 54... c5 {[%clk 0:00:08.1]} 55. Qxc5 {[%clk 0:00:02.5]}
55... Qfe7 {[%clk 0:00:06.9]} 56. Qxb5 {[%clk 0:00:02]} 56... Q1e6 {[%clk
0:00:05.6]} 57. Kxa4 {[%clk 0:00:01.7]} 57... Qa7+ {[%clk 0:00:05.2]} 0-1

[Event "*** Titled Tuesday Blitz"]
[Site "Chess.com"]
[Date "2020.05.19"]
[Round "4"]
[White "SanchezKelvin"]
[Black "velemajstor767276"]
[Result "1-0"]
[WhiteElo "2484"]
[BlackElo "2630"]
[TimeControl "180+1"]
[EndTime "12:41:41 PDT"]
[Termination "SanchezKelvin won on time"]

1. d4 {[%clk 0:03:00.9]} 1... Nf6 {[%clk 0:02:59.3]} 2. c4 {[%clk 0:03:00.4]}
2... e6 {[%clk 0:02:59.6]} 3. Nf3 {[%clk 0:03:00.3]} 3... c5 {[%clk 0:02:59.1]}
4. Nc3 {[%clk 0:02:59.7]} 4... cxd4 {[%clk 0:02:58.7]} 5. Nxd4 {[%clk
0:03:00.6]} 5... Bb4 {[%clk 0:02:58.3]} 6. Nc2 {[%clk 0:02:55.8]} 6... Be7
{[%clk 0:02:44.6]} 7. e4 {[%clk 0:02:54.6]} 7... d6 {[%clk 0:02:43.4]} 8. Be2
{[%clk 0:02:44]} 8... Nc6 {[%clk 0:02:39.8]} 9. O-O {[%clk 0:02:43.6]} 9... O-O
{[%clk 0:02:39.4]} 10. Be3 {[%clk 0:02:43.4]} 10... a6 {[%clk 0:02:38.9]} 11.
Nd4 {[%clk 0:02:43.4]} 11... Bd7 {[%clk 0:02:36]} 12. Qd2 {[%clk 0:02:43.2]}
12... Rc8 {[%clk 0:02:35]} 13. Rac1 {[%clk 0:02:42.5]} 13... Ne5 {[%clk
0:02:12.1]} 14. b3 {[%clk 0:02:40.7]} 14... Neg4 {[%clk 0:02:11.3]} 15. Bg5
{[%clk 0:02:34.7]} 15... h6 {[%clk 0:02:10.4]} 16. Bxg4 {[%clk 0:02:27.3]} 16...
hxg5 {[%clk 0:02:03.1]} 17. Be2 {[%clk 0:02:25.9]} 17... g4 {[%clk 0:02:00.1]}
18. Rfd1 {[%clk 0:02:17.4]} 18... Qb6 {[%clk 0:01:51.8]} 19. Bf1 {[%clk
0:02:14.3]} 19... Qc5 {[%clk 0:01:49.5]} 20. Nde2 {[%clk 0:02:13.5]} 20... Qe5
{[%clk 0:01:45.2]} 21. Qd4 {[%clk 0:02:12.5]} 21... Bc6 {[%clk 0:01:39.6]} 22.
f3 {[%clk 0:01:55.4]} 22... gxf3 {[%clk 0:01:32.5]} 23. gxf3 {[%clk 0:01:54.9]}
23... Qh5 {[%clk 0:01:18.8]} 24. Bg2 {[%clk 0:01:51.3]} 24... Rfd8 {[%clk
0:01:13.2]} 25. Ng3 {[%clk 0:01:46.6]} 25... Qh6 {[%clk 0:01:11.3]} 26. Qd2
{[%clk 0:01:46]} 26... Qxd2 {[%clk 0:01:06.3]} 27. Rxd2 {[%clk 0:01:45.6]} 27...
b5 {[%clk 0:01:05.2]} 28. cxb5 {[%clk 0:01:43.9]} 28... axb5 {[%clk 0:01:06.1]}
29. Rdc2 {[%clk 0:01:40.7]} 29... Bd7 {[%clk 0:01:04.6]} 30. Nd1 {[%clk
0:01:32.9]} 30... Rxc2 {[%clk 0:01:00.6]} 31. Rxc2 {[%clk 0:01:32.8]} 31... Ra8
{[%clk 0:01:01.5]} 32. f4 {[%clk 0:01:28.8]} 32... Ra7 {[%clk 0:00:57.9]} 33.
Bf3 {[%clk 0:01:20.9]} 33... Kf8 {[%clk 0:00:55.4]} 34. Ne3 {[%clk 0:01:20.6]}
34... Bd8 {[%clk 0:00:54.6]} 35. Kg2 {[%clk 0:01:16.8]} 35... Bb6 {[%clk
0:00:53]} 36. Nd1 {[%clk 0:01:14.2]} 36... Bc5 {[%clk 0:00:52.2]} 37. e5 {[%clk
0:01:13.1]} 37... Ne8 {[%clk 0:00:48.6]} 38. Ne4 {[%clk 0:01:12.8]} 38... Bb4
{[%clk 0:00:46.4]} 39. exd6 {[%clk 0:01:10]} 39... Nxd6 {[%clk 0:00:47.3]} 40.
Nc5 {[%clk 0:01:05.4]} 40... Be8 {[%clk 0:00:43.4]} 41. Nd3 {[%clk 0:01:04.9]}
41... Ba3 {[%clk 0:00:41.4]} 42. Ne3 {[%clk 0:01:04]} 42... Ke7 {[%clk
0:00:35.5]} 43. Bc6 {[%clk 0:00:38]} 43... g6 {[%clk 0:00:22.7]} 44. Bxe8 {[%clk
0:00:37.3]} 44... Kxe8 {[%clk 0:00:23.3]} 45. Kf3 {[%clk 0:00:36.8]} 45... Kd7
{[%clk 0:00:22.8]} 46. Ne5+ {[%clk 0:00:36.4]} 46... Ke8 {[%clk 0:00:19.8]} 47.
Nc6 {[%clk 0:00:33.6]} 47... Rc7 {[%clk 0:00:18.1]} 48. Nd4 {[%clk 0:00:33.1]}
48... Rb7 {[%clk 0:00:16.3]} 49. Rc6 {[%clk 0:00:30.7]} 49... Kd7 {[%clk
0:00:15.1]} 50. Ra6 {[%clk 0:00:29.9]} 50... Bc5 {[%clk 0:00:15.3]} 51. Ndc2
{[%clk 0:00:28.3]} 51... Rc7 {[%clk 0:00:15.3]} 52. b4 {[%clk 0:00:24.2]} 52...
Bxe3 {[%clk 0:00:13.5]} 53. Nxe3 {[%clk 0:00:25.1]} 53... Rc3 {[%clk 0:00:13]}
54. Ke2 {[%clk 0:00:22.9]} 54... Nc4 {[%clk 0:00:11.9]} 55. Ra7+ {[%clk
0:00:21.9]} 55... Ke8 {[%clk 0:00:11.5]} 56. Ng4 {[%clk 0:00:20.5]} 56... Rc2+
{[%clk 0:00:09]} 57. Kd3 {[%clk 0:00:20.6]} 57... Rd2+ {[%clk 0:00:08.4]} 58.
Kc3 {[%clk 0:00:20.6]} 58... Re2 {[%clk 0:00:04.4]} 59. Kd3 {[%clk 0:00:19.3]}
59... Rd2+ {[%clk 0:00:03.9]} 60. Kc3 {[%clk 0:00:19.5]} 60... Rg2 {[%clk
0:00:04.2]} 61. Ne5 {[%clk 0:00:18.8]} 61... Nxe5 {[%clk 0:00:02.6]} 62. fxe5
{[%clk 0:00:19]} 62... Rxh2 {[%clk 0:00:02.6]} 63. a4 {[%clk 0:00:17.7]} 1-0